[Event "XXII Rochefort Chess Masters"]
[Site "ROCHEFORT, France"]
[Date "2024.02.19"]
[Round "4.5"]
[White "Mullon, Jean-Baptiste"]
[Black "Morais, Thomas"]
[Result "1-0"]
[TimeControl "1h30/40 - 30' + [30'']"]
[WhiteElo "2304"]
[BlackElo "2014"]

1. e4 {[%clk 01:28:00]} {[%emt 00:02:59]} c5 {[%clk 01:30:48]} {[%emt
00:00:12]} 2. Nf3 {[%clk 01:27:29]} {[%emt 00:01:01]} e6 {[%clk 01:31:09]}
{[%emt 00:00:09]} 3. c3 {[%clk 01:27:54]} {[%emt 00:00:05]} d5 {[%clk
01:31:10]} {[%emt 00:00:29]} 4. exd5 {[%clk 01:28:19]} {[%emt 00:00:05]} Qxd5
{[%clk 01:31:31]} {[%emt 00:00:08]} 5. d4 {[%clk 01:28:45]} {[%emt 00:00:04]}
Nf6 {[%clk 01:30:46]} {[%emt 00:01:15]} 6. Be2 {[%clk 01:29:11]} {[%emt
00:00:04]} Nc6 {[%clk 01:29:20]} {[%emt 00:01:56]} 7. O-O {[%clk 01:29:04]}
{[%emt 00:00:38]} Be7 {[%clk 01:29:31]} {[%emt 00:00:17]} 8. dxc5 {[%clk
01:29:24]} {[%emt 00:00:10]} Qxd1 {[%clk 01:22:01]} {[%emt 00:08:00]} 9. Rxd1
{[%clk 01:29:34]} {[%emt 00:00:20]} Bxc5 {[%clk 01:22:23]} {[%emt 00:00:08]} 10.
b4 {[%clk 01:29:58]} {[%emt 00:00:06]} Bb6 {[%clk 01:13:21]} {[%emt 00:09:32]}
11. b5 {[%clk 01:21:18]} {[%emt 00:09:10]} Ne7 {[%clk 01:12:46]} {[%emt
00:01:04]} 12. Nbd2 {[%clk 01:19:22]} {[%emt 00:02:27]} Ned5 {[%clk 01:08:55]}
{[%emt 00:04:22]} 13. Bb2 {[%clk 01:18:46]} {[%emt 00:01:06]} O-O {[%clk
01:00:35]} {[%emt 00:08:49]} 14. Ne5 {[%clk 01:06:14]} {[%emt 00:13:02]} Rd8
{[%clk 00:40:05]} {[%emt 00:21:00]} 15. Bf3 {[%clk 00:53:10]} {[%emt 00:13:34]}
Nd7 {[%clk 00:27:52]} {[%emt 00:12:44]} 16. Nd3 {[%clk 00:41:08]} {[%emt
00:12:32]} Nc5 {[%clk 00:25:06]} {[%emt 00:03:16]} 17. Nxc5 {[%clk 00:39:50]}
{[%emt 00:01:48]} Bxc5 {[%clk 00:25:31]} {[%emt 00:00:05]} 18. Nb3 {[%clk
00:38:39]} {[%emt 00:01:40]} Be7 {[%clk 00:24:30]} {[%emt 00:01:31]} 19. c4
{[%clk 00:38:58]} {[%emt 00:00:12]} Nb6 {[%clk 00:23:09]} {[%emt 00:01:51]} 20.
Na5 {[%clk 00:34:49]} {[%emt 00:04:39]} Rxd1+ {[%clk 00:15:50]} {[%emt
00:07:49]} 21. Rxd1 {[%clk 00:35:12]} {[%emt 00:00:07]} a6 {[%clk 00:16:14]}
{[%emt 00:00:06]} 22. Bd4 {[%clk 00:25:29]} {[%emt 00:10:13]} Nd7 {[%clk
00:16:39]} {[%emt 00:00:06]} 23. b6 {[%clk 00:25:39]} {[%emt 00:00:20]} Rb8
{[%clk 00:15:33]} {[%emt 00:01:36]} 24. c5 {[%clk 00:22:19]} {[%emt 00:03:50]}
e5 {[%clk 00:10:22]} {[%emt 00:05:41]} 25. Be3 {[%clk 00:22:44]} {[%emt
00:00:05]} Kf8 {[%clk 00:10:05]} {[%emt 00:00:47]} 26. c6 {[%clk 00:22:09]}
{[%emt 00:01:06]} bxc6 {[%clk 00:10:12]} {[%emt 00:00:23]} 27. Nxc6 {[%clk
00:22:32]} {[%emt 00:00:06]} Rxb6 {[%clk 00:10:02]} {[%emt 00:00:40]} 28. Bxb6
{[%clk 00:22:48]} {[%emt 00:00:14]} Nxb6 {[%clk 00:10:24]} {[%emt 00:00:07]} 29.
Nxe5 {[%clk 00:20:05]} {[%emt 00:03:14]} Be6 {[%clk 00:10:24]} {[%emt
00:00:29]} 30. Rb1 {[%clk 00:17:07]} {[%emt 00:03:28]} Bc5 {[%clk 00:09:05]}
{[%emt 00:01:49]} 31. Be2 {[%clk 00:10:12]} {[%emt 00:07:25]} Ke7 {[%clk
00:05:40]} {[%emt 00:03:55]} 32. Bxa6 {[%clk 00:09:56]} {[%emt 00:00:46]} Bxa2
{[%clk 00:06:06]} {[%emt 00:00:04]} 33. Rc1 {[%clk 00:10:01]} {[%emt 00:00:25]}
Kd6 {[%clk 00:06:10]} {[%emt 00:00:26]} 34. Nc4+ {[%clk 00:10:06]} {[%emt
00:00:24]} Bxc4 {[%clk 00:05:42]} {[%emt 00:00:58]} 35. Bxc4 {[%clk 00:10:31]}
{[%emt 00:00:04]} Nxc4 {[%clk 00:05:57]} {[%emt 00:00:16]} 36. Rxc4 {[%clk
00:10:57]} {[%emt 00:00:05]} Kd5 {[%clk 00:06:09]} {[%emt 00:00:18]} 37. Ra4
{[%clk 00:10:47]} {[%emt 00:00:39]} Ke6 {[%clk 00:03:23]} {[%emt 00:03:16]} 38.
Kf1 {[%clk 00:11:11]} {[%emt 00:00:07]} f6 {[%clk 00:01:56]} {[%emt 00:01:57]}
39. Ke2 {[%clk 00:11:34]} {[%emt 00:00:07]} Kf7 {[%clk 00:02:03]} {[%emt
00:00:23]} 40. f3 {[%clk 00:11:58]} {[%emt 00:00:06]} Bd6 {[%clk 00:02:15]}
{[%emt 00:00:18]} 41. h3 {[%clk 00:11:39]} {[%emt 00:00:47]} Kg6 {[%clk
00:00:38]} {[%emt 00:02:08]} 42. Ke3 {[%clk 00:11:28]} {[%emt 00:00:41]} Kf5
{[%clk 00:30:03]} {[%emt 00:01:06]} 43. Ra5+ {[%clk 00:41:35]} {[%emt
00:00:22]} Kg6 {[%clk 00:30:25]} {[%emt 00:00:07]} 44. Ke4 {[%clk 00:42:01]}
{[%emt 00:00:05]} h5 {[%clk 00:29:50]} {[%emt 00:01:05]} 45. Ra6 {[%clk
00:41:14]} {[%emt 00:01:18]} Be5 {[%clk 00:29:24]} {[%emt 00:00:56]} 46. f4
{[%clk 00:41:34]} {[%emt 00:00:10]} Bc3 {[%clk 00:29:50]} {[%emt 00:00:05]} 47.
Rc6 {[%clk 00:39:44]} {[%emt 00:02:20]} Bb2 {[%clk 00:29:56]} {[%emt 00:00:23]}
48. Rc2 {[%clk 00:33:56]} {[%emt 00:06:18]} Ba3 {[%clk 00:30:00]} {[%emt
00:00:26]} 49. Rc7 {[%clk 00:32:36]} {[%emt 00:01:49]} Bb4 {[%clk 00:29:31]}
{[%emt 00:00:59]} 50. f5+ {[%clk 00:32:40]} {[%emt 00:00:27]} Kh6 {[%clk
00:29:43]} {[%emt 00:00:18]} 51. Kd5 {[%clk 00:32:53]} {[%emt 00:00:16]} Bd2
{[%clk 00:29:27]} {[%emt 00:00:47]} 52. Ke6 {[%clk 00:33:10]} {[%emt 00:00:13]}
Kh7 {[%clk 00:29:45]} {[%emt 00:00:11]} 53. Rc8 {[%clk 00:32:37]} {[%emt
00:01:04]} h4 {[%clk 00:28:22]} {[%emt 00:01:54]} 54. Rc4 {[%clk 00:32:33]}
{[%emt 00:00:33]} Bg5 {[%clk 00:27:09]} {[%emt 00:01:42]} 55. Kf7 {[%clk
00:32:27]} {[%emt 00:00:37]} Kh6 {[%clk 00:27:03]} {[%emt 00:00:37]} 56. Re4
{[%clk 00:32:38]} {[%emt 00:00:18]} Kh7 {[%clk 00:27:15]} {[%emt 00:00:18]} 57.
Rg4 {[%clk 00:33:00]} {[%emt 00:00:08]} Kh6 {[%clk 00:27:35]} {[%emt 00:00:10]}
58. Ra4 {[%clk 00:31:58]} {[%emt 00:01:32]} Kh7 {[%clk 00:27:53]} {[%emt
00:00:12]} 59. Ra8 {[%clk 00:32:17]} {[%emt 00:00:11]} Bf4 {[%clk 00:28:03]}
{[%emt 00:00:19]} 60. Ra4 {[%clk 00:26:15]} {[%emt 00:06:33]} Bg5 {[%clk
00:28:16]} {[%emt 00:00:17]} 61. Rg4 {[%clk 00:26:32]} {[%emt 00:00:14]} Kh6
{[%clk 00:28:40]} {[%emt 00:00:06]} 62. g3 {[%clk 00:26:56]} {[%emt 00:00:05]}
1-0

[Event "XXII Rochefort Chess Masters"]
[Site "ROCHEFORT, France"]
[Date "2024.02.19"]
[Round "4.2"]
[White "Sivuk, Vitaly"]
[Black "Laurent-Paoli, Pierre"]
[Result "1/2-1/2"]
[TimeControl "1h30/40 - 30' + [30'']"]
[WhiteElo "2520"]
[BlackElo "2537"]

1. d4 {[%clk 01:20:55]} {[%emt 00:10:02]} Nf6 {[%clk 01:29:57]} {[%emt
00:01:03]} 2. c4 {[%clk 01:21:16]} {[%emt 00:00:09]} e6 {[%clk 01:29:59]}
{[%emt 00:00:29]} 3. Nf3 {[%clk 01:21:35]} {[%emt 00:00:10]} d5 {[%clk
01:29:55]} {[%emt 00:00:34]} 4. Nc3 {[%clk 01:21:56]} {[%emt 00:00:10]} Bb4
{[%clk 01:30:06]} {[%emt 00:00:20]} 5. e3 {[%clk 01:12:06]} {[%emt 00:10:19]}
O-O {[%clk 01:29:29]} {[%emt 00:01:07]} 6. Bd2 {[%clk 01:10:49]} {[%emt
00:01:47]} Nbd7 {[%clk 01:24:31]} {[%emt 00:05:28]} 7. a3 {[%clk 01:09:30]}
{[%emt 00:01:49]} Be7 {[%clk 01:18:48]} {[%emt 00:06:12]} 8. Qc2 {[%clk
01:09:02]} {[%emt 00:00:59]} dxc4 {[%clk 01:09:03]} {[%emt 00:10:16]} 9. Bxc4
{[%clk 01:09:18]} {[%emt 00:00:13]} c5 {[%clk 01:09:28]} {[%emt 00:00:06]} 10.
O-O {[%clk 00:59:03]} {[%emt 00:10:44]} a6 {[%clk 01:07:18]} {[%emt 00:02:40]}
11. dxc5 {[%clk 00:52:03]} {[%emt 00:07:30]} Nxc5 {[%clk 01:03:25]} {[%emt
00:04:23]} 12. b4 {[%clk 00:50:36]} {[%emt 00:01:56]} Ncd7 {[%clk 01:00:17]}
{[%emt 00:03:37]} 13. Nd4 {[%clk 00:39:11]} {[%emt 00:11:55]} Ne5 {[%clk
00:55:27]} {[%emt 00:05:21]} 14. Be2 {[%clk 00:39:19]} {[%emt 00:00:21]} Bd7
{[%clk 00:54:35]} {[%emt 00:01:22]} 15. f4 {[%clk 00:35:17]} {[%emt 00:04:32]}
Nc6 {[%clk 00:54:09]} {[%emt 00:00:56]} 16. Nf3 {[%clk 00:33:24]} {[%emt
00:02:22]} Rc8 {[%clk 00:52:32]} {[%emt 00:02:08]} 17. Rac1 {[%clk 00:30:37]}
{[%emt 00:03:17]} b5 {[%clk 00:33:22]} {[%emt 00:19:40]} 18. Qb1 {[%clk
00:19:36]} {[%emt 00:11:30]} Qb6 {[%clk 00:29:59]} {[%emt 00:03:54]} 19. Ng5
{[%clk 00:19:50]} {[%emt 00:00:15]} Nd4 {[%clk 00:23:38]} {[%emt 00:06:52]} 20.
Bd3 {[%clk 00:17:31]} {[%emt 00:02:48]} Nf5 {[%clk 00:21:21]} {[%emt 00:02:48]}
21. Kh1 {[%clk 00:12:56]} {[%emt 00:05:04]} h6 {[%clk 00:20:01]} {[%emt
00:01:51]} 22. e4 {[%clk 00:13:13]} {[%emt 00:00:13]} Ne3 {[%clk 00:15:37]}
{[%emt 00:04:54]} 23. Bxe3 {[%clk 00:13:01]} {[%emt 00:00:42]} Qxe3 {[%clk
00:15:58]} {[%emt 00:00:09]} 24. e5 {[%clk 00:12:41]} {[%emt 00:00:50]} hxg5
{[%clk 00:12:34]} {[%emt 00:03:55]} 25. exf6 {[%clk 00:11:57]} {[%emt
00:01:13]} gxf6 {[%clk 00:08:19]} {[%emt 00:04:46]} 26. Nd5 {[%clk 00:08:43]}
{[%emt 00:03:43]} Rxc1 {[%clk 00:04:55]} {[%emt 00:03:54]} 27. Nxe7+ {[%clk
00:09:07]} {[%emt 00:00:06]} Kg7 {[%clk 00:05:24]} {[%emt 00:00:02]} 28. Qxc1
{[%clk 00:09:00]} {[%emt 00:00:37]} Qxc1 {[%clk 00:04:28]} {[%emt 00:01:26]} 29.
Rxc1 {[%clk 00:09:24]} {[%emt 00:00:06]} Re8 {[%clk 00:04:26]} {[%emt
00:00:32]} 30. Ng6 {[%clk 00:09:03]} {[%emt 00:00:51]} fxg6 {[%clk 00:04:07]}
{[%emt 00:00:50]} 31. Rc7 {[%clk 00:09:29]} {[%emt 00:00:04]} Rd8 {[%clk
00:04:06]} {[%emt 00:00:32]} 32. fxg5 {[%clk 00:09:21]} {[%emt 00:00:38]} fxg5
{[%clk 00:04:34]} {[%emt 00:00:02]} 33. Kg1 {[%clk 00:09:32]} {[%emt 00:00:17]}
Kf6 {[%clk 00:04:24]} {[%emt 00:00:41]} 34. Be4 {[%clk 00:09:55]} {[%emt
00:00:07]} Be8 {[%clk 00:03:45]} {[%emt 00:01:09]} 35. Kf2 {[%clk 00:09:02]}
{[%emt 00:01:22]} Rd6 {[%clk 00:03:02]} {[%emt 00:01:13]} 36. Ke3 {[%clk
00:08:53]} {[%emt 00:00:38]} Ke5 {[%clk 00:01:32]} {[%emt 00:02:02]} 37. Rc8
{[%clk 00:06:06]} {[%emt 00:03:17]} Bd7 {[%clk 00:01:30]} {[%emt 00:00:33]} 38.
Rg8 {[%clk 00:05:05]} {[%emt 00:01:30]} Bc6 {[%clk 00:01:36]} {[%emt 00:00:25]}
39. Bc2 {[%clk 00:05:08]} {[%emt 00:00:26]} Bxg2 {[%clk 00:01:21]} {[%emt
00:00:45]} 40. Rxg6 {[%clk 00:05:32]} {[%emt 00:00:05]} Bh3 {[%clk 00:00:51]}
{[%emt 00:01:01]} 41. Rxg5+ {[%clk 00:05:49]} {[%emt 00:00:13]} Bf5 {[%clk
00:01:14]} {[%emt 00:00:07]} 42. h4 {[%clk 00:27:53]} {[%emt 00:08:25]} Rc6
{[%clk 00:27:43]} {[%emt 00:04:02]} 43. Bxf5 {[%clk 00:27:28]} {[%emt
00:00:55]} exf5 {[%clk 00:28:10]} {[%emt 00:00:03]} 44. h5 {[%clk 00:27:50]}
{[%emt 00:00:07]} Rc3+ {[%clk 00:25:44]} {[%emt 00:02:57]} 45. Kf2 {[%clk
00:28:15]} {[%emt 00:00:04]} Rxa3 {[%clk 00:23:03]} {[%emt 00:03:12]} 46. h6
{[%clk 00:28:31]} {[%emt 00:00:13]} Rh3 {[%clk 00:21:25]} {[%emt 00:02:08]} 47.
Rg6 {[%clk 00:28:56]} {[%emt 00:00:05]} Kd5 {[%clk 00:20:29]} {[%emt 00:01:26]}
48. Rxa6 {[%clk 00:29:09]} {[%emt 00:00:18]} Kc4 {[%clk 00:20:40]} {[%emt
00:00:18]} 49. Kg2 {[%clk 00:10:40]} {[%emt 00:18:58]} Rh5 {[%clk 00:20:58]}
{[%emt 00:00:13]} 50. Kg3 {[%clk 00:11:03]} {[%emt 00:00:07]} Kxb4 {[%clk
00:21:16]} {[%emt 00:00:12]} 51. Kf4 {[%clk 00:11:30]} {[%emt 00:00:03]} Kc5
{[%clk 00:13:02]} {[%emt 00:08:44]} 52. Rf6 {[%clk 00:11:35]} {[%emt 00:00:24]}
Kc4 {[%clk 00:12:55]} {[%emt 00:00:38]} 53. Rc6+ {[%clk 00:11:57]} {[%emt
00:00:08]} Kb3 {[%clk 00:12:51]} {[%emt 00:00:34]} 54. Rg6 {[%clk 00:12:06]}
{[%emt 00:00:20]} b4 {[%clk 00:12:48]} {[%emt 00:00:34]} 55. Ke5 {[%clk
00:12:21]} {[%emt 00:00:14]} Kc4 {[%clk 00:11:13]} {[%emt 00:02:05]} 56. Kf6
{[%clk 00:12:26]} {[%emt 00:00:25]} b3 {[%clk 00:09:11]} {[%emt 00:02:33]} 57.
Kg7 {[%clk 00:12:53]} {[%emt 00:00:02]} b2 {[%clk 00:06:01]} {[%emt 00:03:41]}
58. Rb6 {[%clk 00:12:59]} {[%emt 00:00:24]} Kc3 {[%clk 00:06:15]} {[%emt
00:00:15]} 59. Rc6+ {[%clk 00:11:56]} {[%emt 00:01:33]} Kd2 {[%clk 00:06:34]}
{[%emt 00:00:12]} 60. Rd6+ {[%clk 00:12:20]} {[%emt 00:00:06]} Kc1 {[%clk
00:06:33]} {[%emt 00:00:31]} 61. Rc6+ {[%clk 00:12:45]} {[%emt 00:00:04]} Kb1
{[%clk 00:06:47]} {[%emt 00:00:16]} 62. h7 {[%clk 00:13:09]} {[%emt 00:00:06]}
Rxh7+ {[%clk 00:06:47]} {[%emt 00:00:30]} 63. Kxh7 {[%clk 00:13:34]} {[%emt
00:00:05]} f4 {[%clk 00:07:14]} {[%emt 00:00:03]} 64. Rf6 {[%clk 00:13:43]}
{[%emt 00:00:21]} f3 {[%clk 00:07:27]} {[%emt 00:00:17]} 65. Rxf3 {[%clk
00:14:08]} {[%emt 00:00:05]} Ka2 {[%clk 00:07:54]} {[%emt 00:00:03]} 66. Rf2
{[%clk 00:14:30]} {[%emt 00:00:08]} Ka1 {[%clk 00:08:22]} {[%emt 00:00:02]} 67.
Rxb2 {[%clk 00:14:56]} {[%emt 00:00:04]} Kxb2 {[%clk 00:08:49]} {[%emt
00:00:03]} 1/2-1/2



[ePGN "0.1;DGT LiveChess/2.2.6"]

[Event "XXII Rochefort Chess Masters"]
[Site "ROCHEFORT, France"]
[Date "2024.02.20"]
[Round "5.2"]
[White "Eugene, Floryan"]
[Black "Sivuk, Vitaly"]
[Result "0-1"]
[TimeControl "1h30/40 - 30' + [30'']"]
[WhiteElo "2404"]
[BlackElo "2520"]

1. e4 {[%emt 00:08:22]} e5 {[%clk 01:23:20]} {[%emt 00:00:27]} 2. Nf3 {[%clk
01:23:19]} {[%emt 00:00:08]} Nc6 {[%emt 00:00:11]} 3. Bc4 {[%emt 00:00:11]} Nf6
{[%emt 00:00:06]} 4. d3 {[%clk 01:24:10]} Bc5 {[%clk 01:24:21]} {[%emt
00:00:10]} 5. O-O {[%clk 01:24:15]} {[%emt 00:00:25]} d6 {[%clk 01:24:39]}
{[%emt 00:00:11]} 6. c3 {[%clk 01:24:37]} {[%emt 00:00:09]} a5 {[%emt
00:01:29]} 7. Re1 {[%emt 00:00:16]} Ba7 {[%clk 01:25:14]} {[%emt 00:00:02]} 8.
Nbd2 {[%clk 01:23:34]} {[%emt 00:00:42]} O-O {[%emt 00:00:29]} 9. h3 {[%clk
01:23:57]} {[%emt 00:00:03]} Be6 {[%emt 00:00:15]} 10. Bb5 {[%emt 00:00:07]}
Ne7 {[%emt 00:05:34]} 11. d4 {[%clk 01:19:18]} {[%emt 00:00:06]} Ng6 {[%clk
01:26:15]} {[%emt 00:00:11]} 12. Ba4 {[%emt 00:01:40]} Nh5 {[%emt 00:01:26]} 13.
Nf1 {[%clk 01:18:55]} {[%emt 00:00:06]} Nhf4 {[%emt 00:00:59]} 14. Ng3 {[%clk
01:18:28]} {[%emt 00:00:11]} exd4 {[%emt 00:16:58]} 15. Nxd4 {[%clk 01:01:55]}
{[%emt 00:00:17]} Bxd4 {[%emt 00:00:56]} 16. Qxd4 {[%emt 00:13:22]} Nxg2 {[%emt
00:27:03]} 17. Kxg2 {[%emt 00:08:14]} Nh4+ {[%clk 01:05:47]} {[%emt 00:00:10]}
18. Kh1 {[%clk 00:34:50]} {[%emt 00:00:05]} Nf3 {[%clk 01:06:03]} {[%emt
00:00:13]} 19. Qe3 {[%clk 00:34:59]} {[%emt 00:00:23]} Nxe1 {[%emt 00:03:39]}
20. Bd2 {[%emt 00:06:28]} f5 {[%emt 00:03:21]} 21. Qxe1 {[%emt 00:01:08]} Qh4
{[%emt 00:03:48]} 22. Kg1 {[%emt 00:08:22]} f4 {[%clk 00:50:58]} {[%emt
00:01:05]} 23. Nf5 {[%clk 00:25:18]} {[%emt 00:00:53]} Qxh3 {[%emt 00:03:11]}
24. Qf1 {[%clk 00:19:30]} {[%emt 00:03:20]} Bxf5 {[%emt 00:03:54]} 25. exf5
{[%emt 00:01:43]} Qxf5 {[%clk 00:49:23]} {[%emt 00:00:06]} 26. Qg2 {[%emt
00:03:12]} c6 {[%emt 00:03:37]} 27. Rc1 {[%emt 00:03:18]} Qd3 {[%clk 00:43:56]}
{[%emt 00:01:31]} 28. f3 {[%emt 00:00:51]} Rae8 {[%clk 00:43:50]} {[%emt
00:00:18]} 29. Bc2 {[%emt 00:03:40]} Qb5 {[%emt 00:02:28]} 30. Qh2 {[%emt
00:01:31]} g6 {[%clk 00:38:56]} {[%emt 00:00:45]} 31. Bxf4 {[%emt 00:00:33]} d5
{[%emt 00:14:33]} 32. Bxg6 {[%emt 00:00:21]} hxg6 {[%clk 00:34:21]} {[%emt
00:00:11]} 33. Be5 {[%emt 00:02:00]} Rxe5 {[%clk 00:30:45]} {[%emt 00:02:11]}
34. Qxe5 {[%clk 00:03:14]} {[%emt 00:00:03]} Qxb2 {[%emt 00:02:55]} 35. Qg5
{[%emt 00:05:57]} Kg7 {[%clk 00:24:11]} {[%emt 00:01:32]} 36. Qe5+ {[%clk
00:00:48]} {[%emt 00:00:36]} Rf6 {[%clk 00:24:24]} {[%emt 00:00:16]} 37. Qe7+
{[%clk 00:00:46]} {[%emt 00:00:34]} Rf7 {[%clk 00:24:44]} {[%emt 00:00:09]} 38.
Qe5+ {[%clk 00:01:13]} {[%emt 00:00:04]} Kh7 {[%clk 00:24:06]} {[%emt
00:01:07]} 39. Rd1 {[%emt 00:02:26]} Rxf3 {[%clk 00:22:21]} {[%emt 00:00:54]}
40. Qe7+ {[%emt 00:01:18]} Kh6 {[%emt 00:03:18]} 41. Qh4+ {[%clk 00:26:08]}
{[%emt 00:02:29]} Kg7 {[%emt 00:15:39]} 42. Re1 {[%emt 00:01:56]} Qxc3 {[%emt
00:01:07]} 43. Re8 {[%clk 00:11:19]} Qa1+ {[%emt 00:01:26]} 44. Kh2 {[%clk
00:11:26]} {[%emt 00:00:14]} Qxa2+ {[%clk 00:48:58]} {[%emt 00:00:09]} 45. Kg1
{[%clk 00:11:51]} {[%emt 00:00:06]} Qa1+ {[%emt 00:00:43]} 46. Kh2 {[%clk
00:10:47]} {[%emt 00:01:00]} Qb2+ {[%clk 00:49:36]} {[%emt 00:00:12]} 47. Kg1
{[%clk 00:11:11]} {[%emt 00:00:07]} Qc1+ {[%clk 00:49:48]} {[%emt 00:00:18]} 48.
Re1 {[%clk 00:11:19]} {[%emt 00:00:22]} Qf4 {[%emt 00:03:40]} 0-1

[Event "XXII Rochefort Chess Masters"]
[Site "ROCHEFORT, France"]
[Date "2024.02.20"]
[Round "5.1"]
[White "Laurent-Paoli, Pierre"]
[Black "Romanov, Evgeny"]
[Result "1/2-1/2"]
[TimeControl "1h30/40 - 30' + [30'']"]
[WhiteElo "2537"]
[BlackElo "2593"]

1. e4 {[%emt 00:03:24]} e5 {[%emt 00:00:19]} 2. Nf3 {[%emt 00:00:21]} Nc6
{[%emt 00:00:06]} 3. Bb5 {[%clk 01:23:24]} {[%emt 00:00:07]} Nge7 {[%emt
00:00:48]} 4. O-O {[%emt 00:00:54]} Ng6 {[%emt 00:00:15]} 5. d4 {[%emt
00:03:07]} Nxd4 {[%emt 00:07:43]} 6. Nxd4 {[%clk 01:16:12]} {[%emt 00:00:04]}
exd4 {[%emt 00:01:20]} 7. Qxd4 {[%emt 00:01:15]} c6 {[%emt 00:01:27]} 8. Be2
{[%emt 00:00:24]} Qb6 {[%emt 00:06:09]} 9. Qc3 {[%emt 00:02:40]} Qc5 {[%emt
00:07:08]} 10. Qd3 {[%emt 00:00:29]} Qd6 {[%emt 00:02:05]} 11. f4 {[%emt
00:00:50]} Qxd3 {[%emt 00:00:05]} 12. cxd3 {[%emt 00:00:33]} Bc5+ {[%clk
01:22:56]} {[%emt 00:00:01]} 13. Kh1 {[%emt 00:11:29]} f5 {[%emt 00:05:09]} 14.
Nd2 {[%emt 00:10:44]} O-O {[%emt 00:10:10]} 15. Nb3 {[%clk 00:43:06]} {[%emt
00:03:28]} Bb6 16. exf5 {[%emt 00:06:19]} Rxf5 {[%clk 00:57:39]} {[%emt
00:00:02]} 17. g4 {[%emt 00:03:12]} Rf7 {[%clk 00:54:49]} {[%emt 00:00:11]} 18.
f5 {[%emt 00:00:44]} Nf8 {[%emt 00:03:17]} 19. Bf4 {[%clk 00:40:37]} {[%emt
00:00:24]} d5 {[%emt 00:00:36]} 20. d4 {[%emt 00:08:28]} h5 {[%clk 00:47:07]}
{[%emt 00:00:13]} 21. h3 {[%clk 00:41:01]} {[%emt 00:00:03]} hxg4 {[%clk
00:47:21]} {[%emt 00:00:16]} 22. hxg4 {[%emt 00:00:09]} g6 {[%emt 00:01:55]} 23.
fxg6 {[%clk 00:39:35]} {[%emt 00:00:34]} Nxg6 {[%emt 00:04:43]} 24. Bh6 {[%emt
00:00:25]} Be6 {[%emt 00:02:21]} 25. Bd3 {[%emt 00:01:52]} Nh4 {[%emt
00:12:25]} 26. Rae1 {[%emt 00:02:09]} Rxf1+ {[%emt 00:00:29]} 27. Rxf1 {[%emt
00:00:58]} Bf7 {[%emt 00:05:35]} 28. Bg5 {[%emt 00:02:42]} Bg6 {[%emt
00:00:38]} 29. Bxg6 {[%clk 00:16:37]} {[%emt 00:00:18]} Nxg6 {[%emt 00:00:06]}
30. Rf6 {[%emt 00:10:31]} Kg7 {[%emt 00:00:43]} 31. Rd6 {[%emt 00:02:42]} Rf8
{[%emt 00:00:16]} 32. Rd7+ {[%emt 00:00:27]} Rf7 {[%emt 00:00:42]} 33. Rxf7+
{[%clk 00:16:26]} {[%emt 00:00:10]} Kxf7 {[%emt 00:01:12]} 34. Kg2 {[%emt
00:03:47]} Nf8 {[%emt 00:00:16]} 35. Kf3 {[%clk 00:15:53]} {[%emt 00:00:03]}
Ne6 {[%clk 00:28:02]} {[%emt 00:00:16]} 36. Be3 {[%clk 00:08:58]} {[%emt
00:00:28]} Bd8 37. Ke2 {[%emt 00:10:44]} b6 {[%emt 00:00:31]} 1/2-1/2